fUST/lending_fUST_20240612
["ID","MTS","AMOUNT","RATE_DAILY","PERIOD"]
[329212614,1718182475438,-380.0,0.0002497,35]
[329212615,1718182475466,-259.0,0.0002497,35]
[329212616,1718182475494,-259.0,0.0002497,35]
[329212617,1718182475526,-4706.0,0.0002497,35]
[329212618,1718182475555,-175.0,0.0002498,35]
[329212619,1718182475582,-150.5,0.0002498,35]
[329212620,1718182475610,-380.0,0.0002498,35]
[329212621,1718182475637,-192.0,0.0002498,35]
[329212622,1718182475667,-317.0,0.0002498,35]
[329212623,1718182475695,-259.0,0.0002498,35]
[329212624,1718182475724,-259.0,0.0002498,35]
[329212625,1718182475755,-4706.0,0.0002498,35]
[329212626,1718182475788,-175.0,0.0002499,35]
[329212627,1718182475816,-150.5,0.0002499,35]
[329212628,1718182475869,-380.0,0.0002499,35]
[329212629,1718182475897,-192.0,0.0002499,35]
[329212630,1718182475925,-317.0,0.0002499,35]
[329212631,1718182475955,-259.0,0.0002499,35]
[329212632,1718182475984,-259.0,0.0002499,35]
[329212633,1718182476015,-4706.0,0.0002499,35]
[329212634,1718182476045,-722041.01683101,0.00025,30]
[329212635,1718182476075,-3675.30982154,0.00025,31]
[329212636,1718182476113,-1208.09664773,0.00025444,30]
[329212637,1718182476144,-2469.40418412,0.000255,60]
[329212638,1718182476174,-173.811266,0.00025753,33]
[329212639,1718182476203,-173.811266,0.00025753,39]
[329212640,1718182476231,-173.811266,0.00025753,45]
[329212641,1718182476259,-173.811266,0.00025753,51]
[329212642,1718182476288,-173.811266,0.00025753,57]
[329212643,1718182476316,-173.811266,0.00025753,64]
[329212644,1718182476344,-173.811266,0.00025753,70]
[329212645,1718182476371,-173.811266,0.00025753,76]
[329212646,1718182476399,-173.811266,0.00025753,82]
[329212647,1718182476427,-173.811266,0.00025753,88]
[329212648,1718182476454,-173.811266,0.00025753,95]
[329212649,1718182476483,-173.811266,0.00025753,101]
[329212650,1718182476512,-173.811266,0.00025753,107]
[329212651,1718182476542,-173.811266,0.00025753,113]
[329212652,1718182476576,-380.0,0.0002677,35]
[329212653,1718182476605,-192.0,0.0002677,35]
[329212654,1718182476638,-175.0,0.0002677,35]
[329212655,1718182476668,-317.0,0.0002677,35]
[329212656,1718182476696,-204.27,0.0002678,35]
[329212657,1718182476726,-380.0,0.0002678,35]
[329212658,1718182476755,-192.0,0.0002678,35]
[329212659,1718182476786,-175.0,0.0002678,35]
[329212660,1718182476814,-317.0,0.0002678,35]
[329212661,1718182476994,-150.5,0.0002679,35]
[329212662,1718182477023,-380.0,0.0002679,35]
[329212663,1718182477053,-192.0,0.0002679,35]
[329212664,1718182477082,-175.0,0.0002679,35]
[329212665,1718182477113,-317.0,0.0002679,35]
[329212666,1718182477143,-105000.0,0.0002688,30]
[329212667,1718182477174,-70926.429,0.00026909,30]
[329212668,1718182477204,-259.0,0.0002698,35]
[329212669,1718182477235,-4706.0,0.0002698,35]
[329212670,1718182477266,-259.0,0.0002699,35]
[329212671,1718182477298,-4706.0,0.0002699,35]
[329212672,1718182477327,-35409.8624916,0.00027,30]
[329212673,1718182492677,-22365.24724442,0.00027,30]
[329212674,1718182492706,-1002.43753204,0.00027,30]
[329212675,1718182492740,-500.0,0.00027397,30]
[329212676,1718182492770,-566.77640795,0.00027397,30]
[329212677,1718182492802,-1901.79,0.00027397,30]
[329212678,1718182492850,-1901.79,0.00027671,30]
[329212679,1718182492881,-1901.79,0.00027945,30]
[329212680,1718182492910,-156.04796623,0.00028,30]
[329212681,1718182492934,-60000.0,0.00028,120]
[329212682,1718182492961,-188.71750715,0.00028,120]
[329212683,1718182492989,-1901.79,0.00028219,30]
[329212684,1718182493019,-380.0,0.0002848,35]
[329212685,1718182493046,-192.0,0.0002848,35]
[329212686,1718182493073,-175.0,0.0002848,35]
[329212687,1718182493101,-317.0,0.0002848,35]
[329212688,1718182493133,-4706.74,0.0002848,35]
[329212689,1718182493160,-260.76,0.0002848,35]
[329212690,1718182493189,-380.0,0.0002849,35]
[329212691,1718182493218,-192.0,0.0002849,35]
[329212692,1718182493247,-175.0,0.0002849,35]
[329212693,1718182493277,-317.0,0.0002849,35]
[329212694,1718182493305,-259.0,0.0002849,35]
[329212695,1718182493336,-4706.0,0.0002849,35]
[329212696,1718182493364,-1901.79,0.00028493,30]
[329212697,1718182493405,-1901.79,0.00028767,30]
[329212698,1718182493435,-334.95581284,0.0002892,30]
[329212699,1718182493464,-12132.16383712,0.00029,30]
[329212700,1718182493491,-57544.0,0.00029,120]
[329212701,1718182493519,-27865.44852543,0.00029,120]
[329212702,1718182493547,-1901.79,0.00029041,30]
[329212703,1718182493575,-1901.79,0.00029315,30]
[329212704,1718182493602,-1901.79,0.00029589,30]
[329212705,1718182493628,-1901.79,0.00029863,30]
[329212706,1718182493659,-466.56299361,0.0003,30]
[329212707,1718182493684,-202.15944936,0.0003,30]
[329212708,1718182493711,-13445.0,0.0003,30]
[329212709,1718182493739,-8884.55749731,0.0003,30]
[329212710,1718182493768,-857.52,0.0003,120]
[329212711,1718182493802,-155.01550155,0.0003,30]
[329212712,1718182493841,-665.35994302,0.0003,120]
[329212713,1718182493878,-1901.79,0.00030136,30]
[329212716,1718182767310,151.00604024,0.00020509,30]
[329212717,1718182767358,151.00604024,0.00020098,120]
[329212723,1718183001642,151.00453014,0.00020435,30]
[329212724,1718183001710,151.00453014,0.00020026,120]
[329212725,1718183067780,165.120704,0.00025753,120]
[329212730,1718183391301,151.00453014,0.00020615,30]
[329212731,1718183391364,151.00453014,0.00020203,120]
[329212793,1718183440968,-2475.34668873,0.00015315,2]
[329212794,1718183440979,-24900.0,0.00015316,2]
[329212795,1718183440991,-1545.09015192,0.00016093,2]
[329212796,1718183441002,-489.4554539,0.00016193,2]
[329212797,1718183441013,-285.73167299,0.00016193,2]
[329212798,1718183441025,-759.55453663,0.00016193,2]
[329212800,1718183441036,-685.82864286,0.00016193,2]
[329212802,1718183441047,-1342.79843971,0.00016193,2]
[329212803,1718183441059,-1441.79948543,0.00016193,2]
[329212804,1718183441070,-281.00194188,0.00016193,2]
[329212805,1718183441081,-552.89399516,0.00016193,2]
[329212806,1718183441092,-186.11219229,0.00016194,2]
[329212807,1718183441103,-7116.13519318,0.00016194,2]
[329212808,1718183441115,-1824.42305811,0.00016437,2]
[329212809,1718183441128,-500.0,0.00016438,4]
[329212810,1718183441139,-250.0,0.00016438,2]
[329212811,1718183441150,-500.0,0.00016438,2]
[329212812,1718183441161,-500.0,0.00016438,2]
[329212813,1718183441177,-500.0,0.00016438,2]
[329212814,1718183441202,-500.0,0.00016438,2]
[329212815,1718183441212,-514.71833834,0.00016438,2]
[329212816,1718183441224,-500.0,0.00016438,2]
[329212817,1718183441236,-350.97767471,0.00016438,2]
[329212818,1718183441246,-500.0,0.00016438,2]
[329212819,1718183441257,-504.82996224,0.00016438,2]
[329212820,1718183441269,-500.0,0.00016438,2]
[329212821,1718183441281,-500.0,0.00016438,2]
[329212822,1718183441292,-150.09224169,0.00016438,2]
[329212823,1718183441303,-264.71039901,0.00016438,2]
[329212824,1718183441317,-500.0,0.00016438,2]
[329212825,1718183441328,-500.0,0.00016438,2]
[329212826,1718183441340,-506.35328406,0.00016438,2]
[329212827,1718183441350,-500.0,0.00016438,2]
[329212828,1718183441361,-500.0,0.00016438,2]
[329212829,1718183441373,-325.28261187,0.00016438,2]
[329212830,1718183441383,-500.0,0.00016438,2]
[329212831,1718183441393,-500.0,0.00016438,2]
[329212832,1718183441404,-500.0,0.00016438,2]
[329212833,1718183441414,-228.92,0.00016438,2]
[329212834,1718183441424,-500.0,0.00016438,2]
[329212836,1718183441435,-500.0,0.00016438,2]
[329212838,1718183441446,-500.0,0.00016438,2]
[329212839,1718183441456,-161.00519817,0.00016438,2]
[329212840,1718183441466,-500.0,0.00016438,2]
[329212841,1718183441477,-500.0,0.00016438,2]
[329212842,1718183441487,-500.0,0.00016438,2]
[329212843,1718183441496,-500.0,0.00016438,2]
[329212844,1718183441508,-502.45741649,0.00016438,2]
[329212845,1718183441518,-2865.93,0.00016438,2]
[329212846,1718183441528,-500.0,0.00016438,2]
[329212847,1718183441538,-500.0,0.00016438,2]
[329212848,1718183441549,-500.0,0.00016438,2]
[329212849,1718183441568,-500.0,0.00016438,2]
[329212850,1718183441581,-500.0,0.00016438,2]
[329212851,1718183441591,-500.0,0.00016438,2]
[329212861,1718183441809,-500.0,0.00016438,2]
[329212862,1718183441821,-500.0,0.00016438,2]
[329212863,1718183441832,-500.0,0.00016438,2]
[329212864,1718183441843,-1420.58,0.00016438,2]
[329212865,1718183441854,-500.0,0.00016438,2]
[329212866,1718183441865,-500.0,0.00016438,2]
[329212867,1718183441876,-504.95465891,0.00016438,2]
[329212869,1718183441887,-500.0,0.00016438,2]
[329212870,1718183441899,-505.67910671,0.00016438,2]
[329212871,1718183441912,-500.0,0.00016438,2]
[329212872,1718183441923,-500.0,0.00016438,2]
[329212873,1718183441934,-500.0,0.00016438,2]
[329212874,1718183441945,-500.0,0.00016438,2]
[329212875,1718183441956,-500.0,0.00016438,2]
[329212876,1718183441966,-565.78,0.00016438,2]
[329212877,1718183441977,-565.78,0.00016438,2]
[329212878,1718183441989,-1254.55,0.00016438,2]
[329212879,1718183442000,-583.22,0.00016438,2]
[329212880,1718183442011,-611.97,0.00016438,2]
[329212881,1718183442021,-500.0,0.00016438,2]
[329212882,1718183442031,-500.0,0.00016438,2]
[329212883,1718183442041,-454.82765048,0.00016438,2]
[329212884,1718183442052,-500.0,0.00016438,2]
[329212885,1718183442062,-500.0,0.00016438,2]
[329212886,1718183442073,-516.39973191,0.00016438,2]
[329212887,1718183442083,-500.0,0.00016438,2]
[329212888,1718183442093,-500.0,0.00016438,2]
[329212889,1718183442104,-500.0,0.00016438,2]
[329212890,1718183442114,-500.0,0.00016438,2]
[329212892,1718183442129,-1653.64,0.00016438,2]
[329212894,1718183442140,-500.0,0.00016438,2]
[329212896,1718183442151,-6845.94,0.00016438,2]
[329212897,1718183442162,-944.7,0.00016438,2]
[329212899,1718183442173,-500.0,0.00016438,2]
[329212901,1718183442196,-500.0,0.00016438,2]
[329212902,1718183442210,-155.83676024,0.00016438,2]
[329212903,1718183442221,-270.06174295,0.00016438,2]
[329212904,1718183442232,-500.0,0.00016438,2]
[329212905,1718183442242,-500.0,0.00016438,2]
[329212906,1718183442253,-15368.96,0.00016438,2]
[329212907,1718183442263,-208.08999013,0.00016438,2]
[329212908,1718183442274,-11991.57,0.00016438,2]
[329212909,1718183442285,-500.0,0.00016438,2]
[329212910,1718183442296,-500.0,0.00016438,2]
[329212911,1718183442306,-841.74,0.00016438,2]
[329212912,1718183442317,-3065.14,0.00016438,2]
[329212913,1718183442328,-500.0,0.00016438,2]
[329212914,1718183442338,-500.0,0.00016438,2]
[329212916,1718183442350,-500.0,0.00016438,2]
[329212917,1718183442360,-500.0,0.00016438,2]
[329212918,1718183442372,-1162.9,0.00016453,2]
[329212919,1718183442382,-275.42614351,0.000165,2]
[329212920,1718183442393,-1187.82481942,0.00016612,2]
[329212921,1718183442403,-1162.9,0.00016616,2]
[329212922,1718183442414,-565.78,0.00016711,2]
[329212924,1718183442425,-500.0,0.00016711,2]
[329212926,1718183442436,-500.0,0.00016712,4]
[329212927,1718183442447,-250.0,0.00016712,2]
[329212928,1718183442458,-500.0,0.00016712,2]
[329212929,1718183442469,-500.0,0.00016712,2]
[329212930,1718183442481,-500.0,0.00016712,2]
[329212931,1718183442492,-500.0,0.00016712,2]
[329212932,1718183442504,-500.0,0.00016712,2]
[329212933,1718183442516,-500.0,0.00016712,2]
[329212934,1718183442527,-324.57038224,0.00016712,2]
[329212935,1718183442537,-500.0,0.00016712,2]
[329212936,1718183442548,-2865.93,0.00016712,2]
[329212937,1718183442559,-505.14857162,0.00016712,2]
[329212938,1718183442569,-500.0,0.00016712,2]
[329212939,1718183442580,-500.0,0.00016712,2]
[329212940,1718183442591,-500.0,0.00016712,2]
[329212941,1718183442602,-1420.58,0.00016712,2]
[329212942,1718183442612,-500.0,0.00016712,2]
[329212943,1718183442622,-500.0,0.00016712,2]
[329212944,1718183442633,-500.0,0.00016712,2]
[329212945,1718183442643,-1254.55,0.00016712,2]
[329212946,1718183442654,-583.22,0.00016712,2]
[329212947,1718183442664,-611.97,0.00016712,2]
[329212948,1718183442675,-500.0,0.00016712,2]
[329212949,1718183442685,-500.0,0.00016712,2]
[329212950,1718183442697,-500.0,0.00016712,2]
[329212951,1718183442707,-500.0,0.00016712,2]
[329212952,1718183442717,-1653.64,0.00016712,2]
[329212953,1718183442729,-6845.94,0.00016712,2]
[329212954,1718183442741,-944.7,0.00016712,2]
[329212955,1718183442751,-500.0,0.00016712,2]
[329212956,1718183442761,-500.0,0.00016712,2]
[329212957,1718183442772,-15368.96,0.00016712,2]
[329212958,1718183442782,-11991.57,0.00016712,2]
[329212959,1718183442793,-841.74,0.00016712,2]
[329212960,1718183442804,-3065.14,0.00016712,2]
[329212961,1718183442815,-500.0,0.00016712,2]
[329212962,1718183442827,-500.0,0.00016712,2]
[329212963,1718183442837,-1162.9,0.00016779,2]
[329212964,1718183442853,-1162.9,0.00016942,2]
[329212965,1718183442864,-565.78,0.00016985,2]
[329212967,1718183442876,-500.0,0.00016985,2]
[329212969,1718183442887,-500.0,0.00016986,4]
[329212970,1718183442898,-250.0,0.00016986,2]
[329212971,1718183442909,-500.0,0.00016986,2]
[329212972,1718183442920,-500.0,0.00016986,2]
[329212973,1718183442932,-500.0,0.00016986,2]
[329212974,1718183442943,-500.0,0.00016986,2]
[329212975,1718183442954,-500.0,0.00016986,2]
[329212976,1718183442965,-500.0,0.00016986,2]
[329212977,1718183442977,-2865.93,0.00016986,2]
[329212979,1718183442990,-500.0,0.00016986,2]
[329212980,1718183443001,-1420.58,0.00016986,2]
[329212982,1718183443012,-500.0,0.00016986,2]
[329212983,1718183443022,-500.0,0.00016986,2]
[329212984,1718183443033,-500.0,0.00016986,2]
[329212985,1718183443043,-1254.55,0.00016986,2]
[329212986,1718183443054,-583.22,0.00016986,2]
[329212988,1718183443065,-611.97,0.00016986,2]
[329212989,1718183443077,-500.0,0.00016986,2]
[329212990,1718183443088,-500.0,0.00016986,2]
[329212991,1718183443100,-500.0,0.00016986,2]
[329212992,1718183443114,-294.89911392,0.00016986,2]
[329212993,1718183443134,-1653.64,0.00016986,2]
[329212994,1718183443144,-6845.94,0.00016986,2]
[329212995,1718183443155,-944.7,0.00016986,2]
[329212996,1718183443168,-500.0,0.00016986,2]
[329212997,1718183443199,-500.0,0.00016986,2]
[329212998,1718183443210,-15368.96,0.00016986,2]
[329212999,1718183443221,-11991.57,0.00016986,2]
[329213000,1718183443233,-841.74,0.00016986,2]
[329213001,1718183443243,-3065.14,0.00016986,2]
[329213002,1718183443254,-500.0,0.00016986,2]
[329213003,1718183443264,-500.0,0.00016986,2]
[329213005,1718183443275,-999.0,0.00017,2]
[329213007,1718183443286,-1162.9,0.00017105,2]
[329213009,1718183443296,-1187.82481941,0.00017228,2]
[329213011,1718183443306,-565.78,0.00017259,2]
[329213013,1718183443317,-250.0,0.0001726,2]
[329213015,1718183443328,-500.0,0.0001726,2]
[329213016,1718183443339,-500.0,0.0001726,2]
[329213017,1718183443350,-500.0,0.0001726,2]
[329213018,1718183443361,-500.0,0.0001726,2]
[329213019,1718183443373,-277.27400704,0.0001726,2]
[329213020,1718183443384,-500.0,0.0001726,2]
[329213021,1718183443395,-2865.93,0.0001726,2]
[329213022,1718183443406,-500.0,0.0001726,2]
[329213023,1718183443417,-1420.58,0.0001726,2]
[329213024,1718183443427,-500.0,0.0001726,2]
[329213025,1718183443439,-1254.55,0.0001726,2]
[329213026,1718183443451,-583.22,0.0001726,2]
[329213027,1718183443461,-611.97,0.0001726,2]
[329213029,1718183443472,-500.0,0.0001726,2]
[329213030,1718183443483,-1653.64,0.0001726,2]
[329213031,1718183443494,-6845.94,0.0001726,2]
[329213032,1718183443505,-944.7,0.0001726,2]
[329213033,1718183443515,-500.0,0.0001726,2]
[329213034,1718183443526,-15368.96,0.0001726,2]
[329213036,1718183443536,-11991.57,0.0001726,2]
[329213037,1718183443547,-841.74,0.0001726,2]
[329213038,1718183443557,-3065.14,0.0001726,2]
[329213039,1718183443568,-500.0,0.0001726,2]
[329213040,1718183443579,-1162.9,0.00017268,2]
[329213041,1718183443590,-306.0,0.00017425,2]
[329213043,1718183443601,-1162.9,0.00017431,2]
[329213045,1718183443612,-565.78,0.00017533,2]
[329213046,1718183443622,-500.0,0.00017533,2]
[329213048,1718183443632,-287.74112168,0.00017534,2]
[329213049,1718183443642,-500.0,0.00017534,2]
[329213050,1718183443653,-500.0,0.00017534,2]
[329213051,1718183443663,-500.0,0.00017534,2]
[329213052,1718183443674,-500.0,0.00017534,2]
[329213053,1718183443683,-500.0,0.00017534,2]
[329213054,1718183443693,-2865.93,0.00017534,2]
[329213055,1718183443703,-500.0,0.00017534,2]
[329213056,1718183443714,-1420.58,0.00017534,2]
[329213057,1718183443724,-500.0,0.00017534,2]
[329213058,1718183443735,-1254.55,0.00017534,2]
[329213059,1718183443745,-583.22,0.00017534,2]
[329213060,1718183443756,-611.97,0.00017534,2]
[329213061,1718183443766,-500.0,0.00017534,2]
[329213062,1718183443777,-1653.64,0.00017534,2]
[329213063,1718183443788,-6845.94,0.00017534,2]
[329213064,1718183443798,-944.7,0.00017534,2]
[329213065,1718183443809,-500.0,0.00017534,2]
[329213066,1718183443819,-15368.96,0.00017534,2]
[329213067,1718183443830,-11991.57,0.00017534,2]
[329213068,1718183443840,-841.74,0.00017534,2]
[329213069,1718183443850,-3065.14,0.00017534,2]
[329213070,1718183443860,-500.0,0.00017534,2]
[329213071,1718183443871,-1162.9,0.00017594,2]
[329213072,1718183443882,-1162.9,0.00017757,2]
[329213073,1718183443893,-565.78,0.00017807,2]
[329213074,1718183443903,-500.0,0.00017808,2]
[329213075,1718183443914,-500.0,0.00017808,2]
[329213076,1718183443924,-500.0,0.00017808,2]
[329213077,1718183443934,-550.65313336,0.00017808,2]
[329213078,1718183443945,-500.0,0.00017808,2]
[329213079,1718183443955,-2865.93,0.00017808,2]
[329213080,1718183443966,-500.0,0.00017808,2]
[329213081,1718183443977,-1420.58,0.00017808,2]
[329213082,1718183443989,-500.0,0.00017808,2]
[329213084,1718183444000,-1254.55,0.00017808,2]
[329213085,1718183444011,-583.22,0.00017808,2]
[329213086,1718183444022,-611.97,0.00017808,2]
[329213087,1718183444033,-500.0,0.00017808,2]
[329213088,1718183444043,-1653.64,0.00017808,2]
[329213089,1718183444054,-6845.94,0.00017808,2]
[329213090,1718183444064,-944.7,0.00017808,2]
[329213092,1718183444074,-500.0,0.00017808,2]
[329213093,1718183444085,-15368.96,0.00017808,2]
[329213094,1718183444097,-11991.57,0.00017808,2]
[329213095,1718183444108,-841.74,0.00017808,2]
[329213096,1718183444119,-3065.14,0.00017808,2]
[329213097,1718183444134,-500.0,0.00017808,2]
[329213099,1718183444144,-1545.09015186,0.00017841,2]
[329213100,1718183444155,-1187.82481941,0.00017844,2]
[329213101,1718183444166,-565.78,0.00017897,2]
[329213102,1718183444196,-529.1,0.00017897,2]
[329213104,1718183444209,-10491.92816074,0.00017898,2]
[329213105,1718183444219,-1162.9,0.0001792,2]
[329213106,1718183444230,-155.01395126,0.00018,2]
[329213107,1718183444241,-632.99963654,0.00018,2]
[329213108,1718183444251,-2765.44251206,0.00018,2]
[329213109,1718183444262,-876.82850055,0.00018,2]
[329213111,1718183444272,-1355.61945113,0.00018,2]
[329213114,1718183444283,-155.02790502,0.00018,2]
[329213116,1718183444294,-1036.68456979,0.00018,2]
[329213117,1718183444304,-204.17791001,0.00018,2]
[329213120,1718183444315,-565.78,0.00018081,2]
[329213121,1718183444325,-500.0,0.00018082,2]
[329213123,1718183444336,-500.0,0.00018082,2]
[329213126,1718183444346,-500.0,0.00018082,2]
[329213128,1718183444357,-2865.93,0.00018082,2]
[329213130,1718183444368,-150.4455963,0.00018082,2]
[329213132,1718183444379,-3677.7192,0.00018082,2]
[329213134,1718183444389,-1420.58,0.00018082,2]
[329213136,1718183444400,-500.0,0.00018082,2]
[329213138,1718183444410,-1254.55,0.00018082,2]
[329213140,1718183444421,-583.22,0.00018082,2]
[329213142,1718183444432,-611.97,0.00018082,2]
[329213144,1718183444441,-500.0,0.00018082,2]
[329213146,1718183444452,-1653.64,0.00018082,2]
[329213147,1718183444463,-6845.94,0.00018082,2]
[329213149,1718183444473,-944.7,0.00018082,2]
[329213150,1718183444484,-500.0,0.00018082,2]
[329213151,1718183444495,-15368.96,0.00018082,2]
[329213152,1718183444506,-11991.57,0.00018082,2]
[329213153,1718183444517,-841.74,0.00018082,2]
[329213154,1718183444527,-3065.14,0.00018082,2]
[329213155,1718183444538,-500.0,0.00018082,2]
[329213156,1718183444548,-1162.9,0.00018083,2]
[329213157,1718183444559,-1162.9,0.00018246,2]
[329213158,1718183444570,-565.78,0.00018355,2]
[329213159,1718183444581,-500.0,0.00018356,2]
[329213160,1718183444592,-500.0,0.00018356,2]
[329213161,1718183444603,-576.105549,0.00018356,2]
[329213162,1718183444614,-2865.93,0.00018356,2]
[329213163,1718183444625,-1420.58,0.00018356,2]
[329213164,1718183444636,-208.37604265,0.00018356,2]
[329213165,1718183444647,-1254.55,0.00018356,2]
[329213166,1718183444658,-583.22,0.00018356,2]
[329213167,1718183444669,-611.97,0.00018356,2]
[329213168,1718183444680,-500.0,0.00018356,2]
[329213169,1718183444690,-1653.64,0.00018356,2]
[329213170,1718183444701,-6845.94,0.00018356,2]
[329213171,1718183444712,-944.7,0.00018356,2]
[329213172,1718183444722,-500.0,0.00018356,2]
[329213173,1718183444733,-15368.96,0.00018356,2]
[329213174,1718183444743,-11991.57,0.00018356,2]
[329213175,1718183444753,-841.74,0.00018356,2]
[329213176,1718183444763,-3065.14,0.00018356,2]
[329213177,1718183444774,-500.0,0.00018356,2]
[329213178,1718183444784,-155.0,0.0001839,2]
[329213179,1718183444795,-1187.82481941,0.0001846,2]
[329213180,1718183444806,-194.4,0.0001848,2]
[329213181,1718183444816,-156.69080923,0.000185,2]
[329213182,1718183444827,-8553.0,0.000185,2]
[329213183,1718183444838,-150.616,0.0001856,2]
[329213184,1718183444849,-299.025,0.0001856,2]
[329213185,1718183444859,-504.828,0.0001856,2]
[329213186,1718183444869,-166.666666,0.00018575,2]
[329213187,1718183444880,-565.78,0.00018629,2]
[329213188,1718183444890,-266.03291022,0.0001863,2]
[329213189,1718183444901,-500.0,0.0001863,2]
[329213190,1718183444911,-2865.93,0.0001863,2]
[329213191,1718183444922,-1420.58,0.0001863,2]
[329213192,1718183444933,-1254.55,0.0001863,2]
[329213193,1718183444945,-583.22,0.0001863,2]
[329213194,1718183444956,-611.97,0.0001863,2]
[329213195,1718183444967,-500.0,0.0001863,2]
[329213196,1718183444977,-1653.64,0.0001863,2]
[329213197,1718183444988,-6845.94,0.0001863,2]
[329213198,1718183444999,-944.7,0.0001863,2]
[329213199,1718183445010,-500.0,0.0001863,2]
[329213200,1718183445023,-15368.96,0.0001863,2]
[329213201,1718183445034,-11991.57,0.0001863,2]
[329213202,1718183445045,-841.74,0.0001863,2]
[329213203,1718183445056,-3065.14,0.0001863,2]
[329213204,1718183445066,-500.0,0.0001863,2]
[329213205,1718183445077,-250.0,0.0001863,2]
[329213206,1718183445087,-274.256005,0.00018634,2]
[329213207,1718183445098,-315.359031,0.00018634,2]
[329213208,1718183445108,-194.4,0.00018643,2]
[329213209,1718183445121,-5281.92082876,0.00018671,2]
[329213210,1718183445133,-600.0,0.00018674,2]
[329213211,1718183445143,-203.3772768,0.00018767,2]
[329213212,1718183445154,-902.81648602,0.00018801,2]
[329213213,1718183445166,-194.4,0.00018806,2]
[329213214,1718183445179,-162.54564181,0.00018857,3]
[329213215,1718183445198,-274.256005,0.00018867,2]
[329213216,1718183445210,-315.359031,0.00018867,2]
[329213217,1718183445221,-600.0,0.00018868,2]
[329213218,1718183445231,-285.48237256,0.00018894,2]
[329213219,1718183445242,-1093.13812226,0.00018903,2]
[329213220,1718183445252,-214.74385373,0.00018903,2]
[329213221,1718183445263,-371.32487134,0.00018903,2]
[329213222,1718183445273,-565.78,0.00018903,2]
[329213223,1718183445283,-500.0,0.00018904,2]
[329213224,1718183445294,-2865.93,0.00018904,2]
[329213225,1718183445304,-1420.58,0.00018904,2]
[329213226,1718183445314,-1254.55,0.00018904,2]
[329213227,1718183445325,-583.22,0.00018904,2]
[329213228,1718183445335,-611.97,0.00018904,2]
[329213229,1718183445345,-500.0,0.00018904,2]
[329213230,1718183445355,-1653.64,0.00018904,2]
[329213231,1718183445365,-6845.94,0.00018904,2]
[329213232,1718183445376,-944.7,0.00018904,2]
[329213233,1718183445386,-500.0,0.00018904,2]
[329213234,1718183445397,-15368.96,0.00018904,2]
[329213235,1718183445407,-11991.57,0.00018904,2]
[329213236,1718183445418,-841.74,0.00018904,2]
[329213237,1718183445428,-3065.14,0.00018904,2]
[329213238,1718183445439,-500.0,0.00018904,2]
[329213239,1718183445450,-194.4,0.00018969,2]
[329213240,1718183445460,-565.78,0.00018993,2]
[329213241,1718183445471,-565.78,0.00018993,2]
[329213242,1718183445481,-90310.10412607,0.00018994,2]
[329213243,1718183445491,-565.78,0.00018999,2]
[329213244,1718183445502,-394.20283113,0.00019,2]
[329213245,1718183445512,-7270.73643792,0.00019,2]
[329213246,1718183445523,-163.14541634,0.00019,2]
[329213247,1718183445534,-180.0,0.00019,2]